fUST/lending_fUST_20250502
["ID","MTS","AMOUNT","RATE_DAILY","PERIOD"]
[359607526,1746180635365,-400.0,0.00019178,2]
[359607527,1746180635376,-400.0,0.00019178,2]
[359607528,1746180635389,-460.48,0.00019178,2]
[359607529,1746180635401,-400.0,0.00019178,2]
[359607530,1746180635412,-400.0,0.00019178,2]
[359607531,1746180635423,-400.0,0.00019178,2]
[359607532,1746180635434,-265.65915849,0.00019178,2]
[359607533,1746180635446,-400.0,0.00019178,2]
[359607534,1746180635458,-400.0,0.00019178,2]
[359607535,1746180635470,-400.0,0.00019178,2]
[359607536,1746180635480,-400.0,0.00019178,2]
[359607537,1746180635491,-400.0,0.00019178,2]
[359607538,1746180635502,-400.0,0.00019178,2]
[359607539,1746180635513,-400.0,0.00019178,2]
[359607540,1746180635524,-400.0,0.00019178,2]
[359607541,1746180635536,-187.95116925,0.00019178,2]
[359607542,1746180635547,-412.39,0.00019178,2]
[359607543,1746180635558,-201.82407043,0.00019178,2]
[359607544,1746180635568,-400.0,0.00019178,2]
[359607545,1746180635579,-400.0,0.00019178,2]
[359607546,1746180635590,-400.0,0.00019178,2]
[359607547,1746180635601,-1240.15,0.00019178,2]
[359607548,1746180635612,-985.1,0.00019178,2]
[359607549,1746180635623,-400.0,0.00019178,2]
[359607550,1746180635633,-400.0,0.00019178,2]
[359607551,1746180635644,-400.0,0.00019178,2]
[359607552,1746180635656,-400.0,0.00019178,2]
[359607553,1746180635666,-400.0,0.00019178,2]
[359607554,1746180635677,-458.87,0.00019178,2]
[359607555,1746180635689,-400.0,0.00019178,2]
[359607556,1746180635700,-400.0,0.00019178,2]
[359607557,1746180635711,-400.0,0.00019178,2]
[359607558,1746180635722,-400.0,0.00019178,2]
[359607559,1746180635734,-400.0,0.00019178,2]
[359607560,1746180635744,-400.0,0.00019178,2]
[359607561,1746180635755,-400.0,0.00019178,2]
[359607562,1746180635768,-400.0,0.00019178,2]
[359607563,1746180635778,-400.0,0.00019178,2]
[359607564,1746180635790,-400.0,0.00019178,2]
[359607565,1746180635800,-501.73,0.00019178,2]
[359607566,1746180635811,-400.0,0.00019178,2]
[359607567,1746180635822,-400.0,0.00019178,2]
[359607568,1746180635832,-400.0,0.00019178,2]
[359607569,1746180635843,-400.0,0.00019178,2]
[359607570,1746180635853,-429.01,0.00019178,2]
[359607571,1746180635863,-400.0,0.00019178,2]
[359607572,1746180635873,-311.52002576,0.00019178,2]
[359607573,1746180635884,-400.0,0.00019178,2]
[359607574,1746180635896,-1761.14,0.00019178,2]
[359607575,1746180635906,-400.0,0.00019178,2]
[359607576,1746180635917,-401.63,0.00019178,2]
[359607577,1746180635929,-400.0,0.00019178,2]
[359607578,1746180635940,-400.0,0.00019178,2]
[359607579,1746180635950,-340.52079691,0.00019178,2]
[359607580,1746180635960,-400.0,0.00019178,2]
[359607581,1746180635971,-400.0,0.00019178,2]
[359607582,1746180635981,-1048.54,0.00019178,2]
[359607583,1746180635992,-400.0,0.00019178,2]
[359607584,1746180636003,-1117.26,0.00019178,2]
[359607585,1746180636014,-730.04,0.00019178,2]
[359607586,1746180636025,-497.8,0.00019178,2]
[359607587,1746180636035,-400.0,0.00019178,2]
[359607588,1746180636046,-400.0,0.00019178,2]
[359607589,1746180636056,-400.0,0.00019178,2]
[359607590,1746180636066,-400.0,0.00019178,2]
[359607591,1746180636077,-405.45610985,0.00019178,2]
[359607592,1746180636087,-400.0,0.00019178,2]
[359607593,1746180636097,-400.0,0.00019178,2]
[359607594,1746180636108,-400.0,0.00019178,2]
[359607595,1746180636119,-498.6723745,0.00019178,2]
[359607596,1746180636129,-400.0,0.00019178,2]
[359607597,1746180636139,-400.0,0.00019178,2]
[359607598,1746180636150,-400.0,0.00019178,2]
[359607599,1746180636160,-400.0,0.00019178,2]
[359607600,1746180636171,-400.0,0.00019178,2]
[359607601,1746180636182,-401.84121099,0.00019178,2]
[359607602,1746180636192,-400.0,0.00019178,2]
[359607603,1746180636204,-400.0,0.00019178,2]
[359607604,1746180636214,-430.11,0.00019178,2]
[359607605,1746180636225,-771.71,0.00019178,2]
[359607606,1746180636236,-400.0,0.00019178,2]
[359607607,1746180636247,-400.0,0.00019178,2]
[359607608,1746180636257,-400.0,0.00019178,2]
[359607609,1746180636267,-400.0,0.00019178,2]
[359607610,1746180636279,-311.46960931,0.00019178,2]
[359607611,1746180636291,-400.0,0.00019178,2]
[359607612,1746180636302,-400.0,0.00019178,2]
[359607613,1746180636312,-484.81,0.00019178,2]
[359607614,1746180636323,-400.0,0.00019178,2]
[359607615,1746180636333,-400.0,0.00019178,2]
[359607616,1746180636343,-400.0,0.00019178,2]
[359607617,1746180636353,-400.0,0.00019178,2]
[359607618,1746180636363,-996.7,0.00019178,2]
[359607619,1746180636373,-400.0,0.00019178,2]
[359607620,1746180636387,-400.0,0.00019178,2]
[359607621,1746180636397,-400.0,0.00019178,2]
[359607622,1746180636407,-400.0,0.00019178,2]
[359607623,1746180636417,-400.0,0.00019178,2]
[359607624,1746180636427,-400.0,0.00019178,2]
[359607625,1746180636438,-400.0,0.00019178,2]
[359607626,1746180636449,-400.0,0.00019178,2]
[359607627,1746180636459,-723.58,0.00019178,2]
[359607628,1746180636470,-400.0,0.00019178,2]
[359607629,1746180636483,-400.0,0.00019178,2]
[359607630,1746180636495,-400.0,0.00019178,2]
[359607631,1746180636506,-400.0,0.00019178,2]
[359607632,1746180636516,-400.0,0.00019178,2]
[359607633,1746180636527,-616.23,0.00019178,2]
[359607634,1746180636537,-400.0,0.00019178,2]
[359607635,1746180636547,-400.0,0.00019178,2]
[359607636,1746180636557,-400.0,0.00019178,2]
[359607637,1746180636567,-400.0,0.00019178,2]
[359607638,1746180636578,-348.20782882,0.00019178,2]
[359607639,1746180636588,-400.0,0.00019178,2]
[359607640,1746180636598,-400.0,0.00019178,2]
[359607641,1746180636608,-605.44,0.00019178,2]
[359607642,1746180636618,-530.6,0.00019178,2]
[359607643,1746180636628,-400.0,0.00019178,2]
[359607644,1746180636638,-709.79,0.00019178,2]
[359607645,1746180636648,-500.0,0.00019178,2]
[359607646,1746180636659,-400.0,0.00019178,2]
[359607647,1746180636671,-231.51680949,0.00019178,2]
[359607648,1746180636681,-400.0,0.00019178,2]
[359607649,1746180636691,-400.0,0.00019178,2]
[359607650,1746180636702,-400.0,0.00019178,2]
[359607651,1746180636712,-400.0,0.00019178,2]
[359607652,1746180636723,-400.0,0.00019178,2]
[359607653,1746180636733,-416.55687346,0.00019178,2]
[359607654,1746180636744,-400.0,0.00019178,2]
[359607655,1746180636754,-481.8461734,0.00019178,2]
[359607656,1746180636765,-400.0,0.00019178,2]
[359607657,1746180636776,-1298.35,0.00019178,2]
[359607658,1746180636786,-400.0,0.00019178,2]
[359607659,1746180636798,-503.41,0.00019178,2]
[359607660,1746180636809,-400.0,0.00019178,2]
[359607661,1746180636819,-400.0,0.00019178,2]
[359607662,1746180636830,-400.0,0.00019178,2]
[359607663,1746180636842,-467.56,0.00019178,2]
[359607664,1746180636852,-595.34,0.00019178,2]
[359607665,1746180636863,-400.0,0.00019178,2]
[359607666,1746180636873,-24.13522178,0.00019178,2]
[359607698,1746180638463,-500.0,0.00018169,2]
[359607700,1746180638474,-500.0,0.00018169,2]
[359607702,1746180638484,-500.0,0.00018169,2]
[359607704,1746180638494,-500.0,0.00018169,2]
[359607706,1746180638504,-500.0,0.00018169,2]
[359607708,1746180638514,-500.0,0.00018169,2]
[359607710,1746180638524,-500.0,0.00018169,2]
[359607712,1746180638533,-45.79544582,0.00018169,2]
[359607723,1746180638628,-454.20455418,0.00018169,2]
[359607725,1746180638638,-500.0,0.00018169,2]
[359607727,1746180638649,-500.0,0.00018169,2]
[359607729,1746180638662,-500.0,0.00018169,2]
[359607731,1746180638675,-500.0,0.00018169,2]
[359607733,1746180638684,-500.0,0.00018169,2]
[359607735,1746180638694,-500.0,0.00018169,2]
[359607737,1746180638704,-200.42170215,0.00018169,2]
[359607739,1746180638713,-500.0,0.00018169,2]
[359607741,1746180638724,-500.0,0.00018169,2]
[359607743,1746180638734,-500.0,0.00018169,2]
[359607745,1746180638743,-500.0,0.00018169,2]
[359607747,1746180638753,-316.47297046,0.00018169,2]
[359607749,1746180638763,-500.0,0.00018169,2]
[359607751,1746180638772,-500.0,0.00018169,2]
[359607753,1746180638781,-500.0,0.00018169,2]
[359607755,1746180638791,-500.0,0.00018169,2]
[359607757,1746180638801,-500.0,0.00018169,2]
[359607759,1746180638810,-500.0,0.00018169,2]
[359607761,1746180638819,-288.6649001,0.00018169,2]
[359607763,1746180638829,-500.0,0.00018169,2]
[359607765,1746180638838,-500.0,0.00018169,2]
[359607767,1746180638848,-500.0,0.00018169,2]
[359607769,1746180638857,-500.0,0.00018169,2]
[359607771,1746180638867,-500.0,0.00018169,2]
[359607773,1746180638877,-500.0,0.00018169,2]
[359607775,1746180638887,-500.0,0.00018169,2]
[359607777,1746180638896,-500.0,0.00018169,2]
[359607779,1746180638906,-919.74477822,0.00019178,2]
[359607781,1746180638915,-400.0,0.00019178,2]
[359607783,1746180638925,-500.0,0.00019178,2]
[359607785,1746180638934,-315.14819387,0.00019178,2]
[359607787,1746180638944,-400.71558451,0.00019178,2]
[359607789,1746180638954,-400.0,0.00019178,2]
[359607791,1746180638964,-400.0,0.00019178,2]
[359607793,1746180638974,-400.0,0.00019178,2]
[359607796,1746180638984,-400.0,0.00019178,2]
[359607798,1746180638993,-400.0,0.00019178,2]
[359607800,1746180639003,-400.0,0.00019178,2]
[359607802,1746180639014,-176.57674597,0.00019178,2]
[359607804,1746180639023,-400.0,0.00019178,2]
[359607806,1746180639033,-2272.54,0.00019178,2]
[359607808,1746180639042,-403.14043117,0.00019178,2]
[359607810,1746180639051,-400.0,0.00019178,2]
[359607812,1746180639060,-782.95,0.00019178,2]
[359607814,1746180639070,-400.0,0.00019178,2]
[359607816,1746180639079,-400.0,0.00019178,2]
[359607818,1746180639088,-400.0,0.00019178,2]
[359607820,1746180639098,-400.0,0.00019178,2]
[359607821,1746180639107,-400.0,0.00019178,2]
[359607823,1746180639117,-1502.27,0.00019178,2]
[359607825,1746180639126,-651.63,0.00019178,2]
[359607827,1746180639136,-778.23,0.00019178,2]
[359607829,1746180639146,-1122.67,0.00019178,2]
[359607831,1746180639155,-400.0,0.00019178,2]
[359607833,1746180639165,-400.0,0.00019178,2]
[359607835,1746180639174,-400.0,0.00019178,2]
[359607837,1746180639184,-400.0,0.00019178,2]
[359607839,1746180639193,-400.0,0.00019178,2]
[359607841,1746180639202,-1214.43,0.00019178,2]
[359607843,1746180639211,-787.23,0.00019178,2]
[359607845,1746180639222,-400.0,0.00019178,2]
[359607847,1746180639231,-500.88804947,0.00019178,2]
[359607849,1746180639240,-400.0,0.00019178,2]
[359607851,1746180639250,-679.4,0.00019178,2]
[359607853,1746180639260,-400.0,0.00019178,2]
[359607855,1746180639269,-400.0,0.00019178,2]
[359607857,1746180639279,-400.0,0.00019178,2]
[359607859,1746180639289,-7603.35,0.00019178,2]
[359607861,1746180639299,-400.0,0.00019178,2]
[359607864,1746180639309,-400.0,0.00019178,2]
[359607866,1746180639319,-400.0,0.00019178,2]
[359607868,1746180639328,-2666.32304917,0.00019178,2]
[359608478,1746180646723,-3166.29695083,0.00019178,2]
[359608479,1746180646733,-400.0,0.00019178,2]
[359608480,1746180646743,-400.0,0.00019178,2]
[359608481,1746180646753,-400.0,0.00019178,2]
[359608482,1746180646763,-400.0,0.00019178,2]
[359608484,1746180646773,-416.14,0.00019178,2]
[359608486,1746180646783,-400.0,0.00019178,2]
[359608488,1746180646793,-866.74,0.00019178,2]
[359608490,1746180646802,-400.0,0.00019178,2]
[359608492,1746180646812,-205.47561738,0.00019178,2]
[359608494,1746180646822,-400.0,0.00019178,2]
[359608496,1746180646831,-400.0,0.00019178,2]
[359608498,1746180646841,-5.68150691,0.00019178,2]
[359608500,1746180646855,-430.57849309,0.00019178,2]
[359608502,1746180646864,-400.0,0.00019178,2]
[359608504,1746180646873,-400.0,0.00019178,2]
[359608506,1746180646882,-400.0,0.00019178,2]
[359608508,1746180646892,-1143.45,0.00019178,2]
[359608510,1746180646901,-400.0,0.00019178,2]
[359608512,1746180646910,-400.0,0.00019178,2]
[359608514,1746180646920,-400.0,0.00019178,2]
[359608516,1746180646929,-400.0,0.00019178,2]
[359608518,1746180646939,-400.0,0.00019178,2]
[359608520,1746180646949,-400.0,0.00019178,2]
[359608521,1746180646959,-400.0,0.00019178,2]
[359608523,1746180646968,-800.69,0.00019178,2]
[359608525,1746180646978,-400.0,0.00019178,2]
[359608527,1746180646987,-1730.09,0.00019178,2]
[359608529,1746180646997,-400.0,0.00019178,2]
[359608531,1746180647006,-819.82,0.00019178,2]
[359608533,1746180647016,-400.0,0.00019178,2]
[359608535,1746180647026,-400.0,0.00019178,2]
[359608537,1746180647035,-506.81814958,0.00019178,2]
[359608539,1746180647044,-2477.48506928,0.00019178,2]
[359608541,1746180647131,-13.70493072,0.00019178,2]
[359608542,1746180647142,-400.0,0.00019178,2]
[359608544,1746180647152,-400.0,0.00019178,2]
[359608546,1746180647161,-410.63381378,0.00019178,2]
[359608548,1746180647171,-400.0,0.00019178,2]
[359608550,1746180647181,-400.0,0.00019178,2]
[359608552,1746180647190,-331.9126275,0.00019178,2]
[359608555,1746180647206,-68.0873725,0.00019178,2]
[359608557,1746180647214,-400.0,0.00019178,2]
[359608559,1746180647224,-495.25,0.00019178,2]
[359608561,1746180647234,-851.71,0.00019178,2]
[359608563,1746180647243,-400.0,0.00019178,2]
[359608565,1746180647252,-400.0,0.00019178,2]
[359608567,1746180647261,-754.71,0.00019178,2]
[359608569,1746180647271,-500.0,0.00019178,2]
[359608571,1746180647280,-1130.2426275,0.00019178,2]
[359608736,1746181150305,155.520863,0.00025,31]
[359608773,1746181748089,155.520863,0.00025,31]
[359608799,1746181832612,-327.15097224,0.00018,2]
[359608800,1746181832623,-250.0,0.00018156,2]
[359608801,1746181832633,-300.0,0.00018999,2]
[359608802,1746181832643,-300.0,0.00018999,2]
[359608803,1746181832652,-480.0,0.00018999,2]
[359608804,1746181832663,-195.0,0.00018999,2]
[359608805,1746181832673,-545.0,0.00019,2]
[359608806,1746181832683,-403.0,0.00019,2]
[359608807,1746181832693,-1022.84887136,0.00019078,2]
[359608808,1746181832703,-169.83163546,0.00019078,2]
[359608809,1746181832713,-1022.84887136,0.00019147,2]
[359608810,1746181832723,-764.95,0.00019168,3]
[359608811,1746181832733,-382.47,0.00019168,3]
[359608812,1746181832743,-191.24,0.00019168,3]
[359608813,1746181832752,-573.72,0.00019168,3]
[359608814,1746181832762,-646.2747745,0.0001917,2]
[359608815,1746181832772,-500.0,0.00019173,2]
[359608816,1746181832782,-474.25382378,0.00019173,2]
[359608817,1746181832792,-200.81928645,0.00019173,2]
[359608818,1746181832802,-196.58461169,0.00019173,2]
[359608819,1746181832812,-650.51024071,0.00019177,2]
[359608820,1746181832822,-219.55181416,0.00019177,2]
[359608821,1746181832833,-528.03064904,0.00019178,2]
[359608822,1746181832842,-400.0,0.00019178,2]
[359608823,1746181832852,-400.0,0.00019178,2]
[359608824,1746181832862,-400.0,0.00019178,2]
[359608825,1746181832874,-400.0,0.00019178,2]
[359608826,1746181832884,-400.0,0.00019178,2]
[359608827,1746181832895,-400.0,0.00019178,2]
[359608828,1746181832905,-400.0,0.00019178,2]
[359608829,1746181832915,-400.0,0.00019178,2]
[359608830,1746181832927,-400.0,0.00019178,2]
[359608831,1746181832937,-400.0,0.00019178,2]
[359608832,1746181832947,-400.0,0.00019178,2]
[359608833,1746181832957,-400.0,0.00019178,2]
[359608834,1746181832968,-400.0,0.00019178,2]
[359608835,1746181832978,-400.0,0.00019178,2]
[359608836,1746181832989,-500.0,0.00019178,2]
[359608837,1746181832999,-400.0,0.00019178,2]
[359608838,1746181833009,-400.0,0.00019178,2]
[359608839,1746181833020,-400.0,0.00019178,2]
[359608840,1746181833031,-400.0,0.00019178,2]
[359608841,1746181833042,-400.0,0.00019178,2]
[359608842,1746181833053,-400.0,0.00019178,2]
[359608843,1746181833065,-400.0,0.00019178,2]
[359608844,1746181833076,-968.84,0.00019178,2]
[359608845,1746181833089,-400.0,0.00019178,2]
[359608846,1746181833099,-400.0,0.00019178,2]
[359608847,1746181833110,-400.0,0.00019178,2]
[359608848,1746181833121,-400.0,0.00019178,2]
[359608849,1746181833132,-400.0,0.00019178,2]
[359608850,1746181833143,-400.0,0.00019178,2]
[359608851,1746181833155,-642.55,0.00019178,2]
[359608852,1746181833166,-400.0,0.00019178,2]
[359608853,1746181833177,-214.93517203,0.00019178,2]
[359608854,1746181833440,-400.0,0.00019178,2]
[359608855,1746181833450,-400.0,0.00019178,2]
[359608856,1746181833461,-400.0,0.00019178,2]
[359608857,1746181833471,-400.0,0.00019178,2]
[359608858,1746181833482,-310.27928274,0.00019178,2]
[359608859,1746181833492,-400.0,0.00019178,2]
[359608860,1746181833502,-400.0,0.00019178,2]
[359608861,1746181833512,-500.0,0.00019178,2]
[359608862,1746181833523,-400.0,0.00019178,2]
[359608863,1746181833533,-400.0,0.00019178,2]
[359608864,1746181833544,-400.0,0.00019178,2]
[359608865,1746181833554,-463.42048272,0.00019178,2]
[359608866,1746181833565,-400.0,0.00019178,2]
[359608867,1746181833574,-400.0,0.00019178,2]
[359608868,1746181833584,-400.0,0.00019178,2]
[359608869,1746181833594,-400.0,0.00019178,2]
[359608870,1746181833604,-1000.0,0.00019178,2]
[359608871,1746181833629,-512.55641467,0.00019178,2]
[359608872,1746181833641,-400.0,0.00019178,2]
[359608873,1746181833653,-400.0,0.00019178,2]
[359608874,1746181833664,-400.0,0.00019178,2]
[359608875,1746181833676,-400.0,0.00019178,2]
[359608876,1746181833687,-400.0,0.00019178,2]
[359608877,1746181833697,-400.0,0.00019178,2]
[359608878,1746181833708,-410.18012047,0.00019178,2]
[359608879,1746181833719,-400.0,0.00019178,2]
[359608880,1746181833730,-400.0,0.00019178,2]
[359608881,1746181833742,-400.0,0.00019178,2]
[359608882,1746181833752,-483.87697905,0.00019178,2]
[359608883,1746181833763,-400.0,0.00019178,2]
[359608884,1746181833774,-400.0,0.00019178,2]
[359608885,1746181833784,-400.0,0.00019178,2]
[359608886,1746181833795,-412.23,0.00019178,2]
[359608887,1746181833805,-457.96,0.00019178,2]
[359608888,1746181833816,-400.0,0.00019178,2]
[359608889,1746181833826,-400.0,0.00019178,2]
[359608890,1746181833838,-400.0,0.00019178,2]
[359608891,1746181833849,-400.0,0.00019178,2]
[359608892,1746181833859,-400.0,0.00019178,2]
[359608893,1746181833870,-190.68450743,0.00019178,2]
[359609174,1746181840923,-209.31549257,0.00019178,2]
[359609176,1746181840933,-400.0,0.00019178,2]
[359609178,1746181840943,-400.0,0.00019178,2]
[359609180,1746181840953,-400.0,0.00019178,2]
[359609182,1746181840963,-400.0,0.00019178,2]
[359609184,1746181840973,-400.0,0.00019178,2]
[359609186,1746181840983,-372.0,0.00019178,2]
[359609188,1746181840992,-400.0,0.00019178,2]
[359609190,1746181841002,-400.0,0.00019178,2]
[359609192,1746181841012,-400.0,0.00019178,2]
[359609194,1746181841021,-411.87,0.00019178,2]
[359609196,1746181841030,-400.0,0.00019178,2]
[359609199,1746181841041,-400.0,0.00019178,2]
[359609201,1746181841050,-400.0,0.00019178,2]
[359609203,1746181841060,-400.0,0.00019178,2]
[359609205,1746181841070,-400.0,0.00019178,2]
[359609207,1746181841081,-614.4,0.00019178,2]
[359609209,1746181841090,-400.0,0.00019178,2]
[359609211,1746181841100,-417.42662042,0.00019178,2]
[359609213,1746181841110,-400.0,0.00019178,2]
[359609215,1746181841120,-400.0,0.00019178,2]
[359609217,1746181841129,-400.0,0.00019178,2]
[359609219,1746181841139,-475.29439486,0.00019178,2]
[359609221,1746181841148,-400.0,0.00019178,2]
[359609223,1746181841157,-477.06,0.00019178,2]
[359609225,1746181841167,-400.0,0.00019178,2]
[359609227,1746181841176,-400.0,0.00019178,2]
[359609234,1746181841239,-364.46183797,0.00019178,2]
[359609236,1746181841249,-400.0,0.00019178,2]
[359609238,1746181841258,-411.13,0.00019178,2]
[359609241,1746181841268,-400.0,0.00019178,2]
[359609243,1746181841277,-693.43,0.00019178,2]
[359609245,1746181841287,-400.0,0.00019178,2]
[359609247,1746181841297,-402.09947175,0.00019178,2]
[359609249,1746181841306,-400.0,0.00019178,2]
[359609251,1746181841315,-400.0,0.00019178,2]
[359609253,1746181841325,-400.0,0.00019178,2]
[359609255,1746181841335,-400.0,0.00019178,2]
[359609257,1746181841345,-400.0,0.00019178,2]
[359609259,1746181841355,-400.0,0.00019178,2]
[359609261,1746181841364,-400.0,0.00019178,2]
[359609263,1746181841374,-400.0,0.00019178,2]
[359609265,1746181841383,-400.0,0.00019178,2]
[359609267,1746181841392,-400.0,0.00019178,2]
[359609269,1746181841402,-505.50615447,0.00019178,2]
[359609271,1746181841411,-400.0,0.00019178,2]
[359609273,1746181841422,-400.0,0.00019178,2]
[359609275,1746181841431,-400.0,0.00019178,2]
[359609277,1746181841440,-400.0,0.00019178,2]
[359609279,1746181841450,-400.0,0.00019178,2]
[359609281,1746181841459,-400.0,0.00019178,2]
[359609283,1746181841468,-457.91609562,0.00019178,2]
[359609285,1746181841477,-400.0,0.00019178,2]
[359609287,1746181841486,-176.52210069,0.00019178,2]
[359609289,1746181841495,-400.0,0.00019178,2]
[359609291,1746181841505,-400.0,0.00019178,2]
[359609293,1746181841515,-400.0,0.00019178,2]
[359609295,1746181841526,-1098.83,0.00019178,2]
[359609297,1746181841536,-400.0,0.00019178,2]
[359609299,1746181841545,-400.0,0.00019178,2]
[359609301,1746181841554,-400.0,0.00019178,2]
[359609303,1746181841563,-400.0,0.00019178,2]
[359609305,1746181841573,-322.63041088,0.00019178,2]
[359609307,1746181841582,-400.0,0.00019178,2]
[359609309,1746181841591,-618.7,0.00019178,2]
[359609311,1746181841600,-400.0,0.00019178,2]
[359609313,1746181841609,-400.0,0.00019178,2]
[359609315,1746181841619,-400.0,0.00019178,2]
[359609317,1746181841628,-508.49,0.00019178,2]
[359609319,1746181841637,-400.0,0.00019178,2]
[359609321,1746181841647,-400.0,0.00019178,2]
[359609323,1746181841657,-4153.2,0.00019178,2]
[359609325,1746181841665,-400.0,0.00019178,2]
[359609328,1746181841676,-400.0,0.00019178,2]
[359609330,1746181841685,-418.11095225,0.00019178,2]
[359609332,1746181841695,-400.0,0.00019178,2]
[359609334,1746181841706,-904.56,0.00019178,2]
[359609336,1746181841715,-400.0,0.00019178,2]
[359609338,1746181841724,-750.33,0.00019178,2]
[359609340,1746181841733,-505.07806577,0.00019178,2]
[359609342,1746181841742,-400.0,0.00019178,2]
[359609344,1746181841751,-400.0,0.00019178,2]
[359609346,1746181841761,-624.48,0.00019178,2]
[359609348,1746181841771,-400.0,0.00019178,2]
[359609350,1746181841780,-400.0,0.00019178,2]
[359609352,1746181841789,-405.58727036,0.00019178,2]
[359609354,1746181841798,-400.0,0.00019178,2]
[359609356,1746181841807,-400.0,0.00019178,2]
[359609358,1746181841816,-706.06,0.00019178,2]
[359609360,1746181841826,-400.0,0.00019178,2]
[359609362,1746181841835,-400.0,0.00019178,2]
[359609364,1746181841844,-400.0,0.00019178,2]
[359609366,1746181841853,-400.0,0.00019178,2]
[359609368,1746181841862,-400.0,0.00019178,2]
[359609370,1746181841871,-651.09,0.00019178,2]
[359609372,1746181841881,-400.0,0.00019178,2]
[359609374,1746181841891,-400.0,0.00019178,2]
[359609376,1746181841901,-562.54,0.00019178,2]
[359609378,1746181841910,-400.0,0.00019178,2]
[359609380,1746181841919,-400.0,0.00019178,2]
[359609382,1746181841928,-400.0,0.00019178,2]
[359609384,1746181841938,-400.0,0.00019178,2]
[359609386,1746181841947,-400.0,0.00019178,2]
[359609388,1746181841957,-400.0,0.00019178,2]
[359609390,1746181841966,-400.0,0.00019178,2]
[359609392,1746181841975,-400.0,0.00019178,2]
[359609394,1746181841985,-400.0,0.00019178,2]
[359609396,1746181841994,-365.16561626,0.00019178,2]
[359609398,1746181842004,-789.21,0.00019178,2]
[359609400,1746181842013,-400.0,0.00019178,2]
[359609401,1746181842022,-400.0,0.00019178,2]
[359609402,1746181842032,-400.0,0.00019178,2]
[359609403,1746181842042,-400.0,0.00019178,2]
[359609404,1746181842051,-400.0,0.00019178,2]
[359609405,1746181842060,-400.0,0.00019178,2]
[359609406,1746181842070,-400.0,0.00019178,2]
[359609407,1746181842079,-400.0,0.00019178,2]
[359609408,1746181842088,-400.0,0.00019178,2]
[359609409,1746181842097,-400.0,0.00019178,2]
[359609410,1746181842107,-400.0,0.00019178,2]
[359609411,1746181842116,-400.0,0.00019178,2]
[359609412,1746181842125,-400.0,0.00019178,2]
[359609413,1746181842135,-400.0,0.00019178,2]
[359609414,1746181842144,-754.42,0.00019178,2]
[359609415,1746181842153,-841.79,0.00019178,2]
[359609416,1746181842162,-400.0,0.00019178,2]
[359609417,1746181842171,-400.0,0.00019178,2]
[359609418,1746181842181,-400.0,0.00019178,2]
[359609419,1746181842194,-400.0,0.00019178,2]
[359609420,1746181842203,-400.0,0.00019178,2]
[359609421,1746181842213,-2036.74,0.00019178,2]